[Event "Titled Tuesday Blitz July 11 Late 2023"]
[White "Estrada Nieto, Julian"]
[Black "Schuster, Karsten"]
[WhiteFideId "5101018"]
[BlackFideId "4611071"]
[WhiteElo "2459"]
[BlackElo "2346"]
[Result "1-0"]
[Round "8"]
[TimeControl "180+2"]
[Date "2023.07.11"]
[WhiteClock "0:00:06"]
[BlackClock "0:00:10"]
[Board "95"]

1. e4 {[%clk 0:03:00]}  d5 {[%clk 0:02:59]} 2. exd5 {[%clk 0:03:00]}  Qxd5 {[%clk 0:03:00]} 3. Nc3 {[%clk 0:03:00]}  Qd6 {[%clk 0:03:01]} 4. d4 {[%clk 0:03:01]}  c6 {[%clk 0:03:01]} 5. Nf3 {[%clk 0:03:01]}  Bg4 {[%clk 0:03:02]} 6. Be3 {[%clk 0:02:52]}  Nf6 {[%clk 0:03:01]} 7. h3 {[%clk 0:02:52]}  Bh5 {[%clk 0:03:00]} 8. g4 {[%clk 0:02:52]}  Bg6 {[%clk 0:03:00]} 9. Ne5 {[%clk 0:02:53]}  Nbd7 {[%clk 0:03:00]} 10. f4 {[%clk 0:02:41]}  Be4 {[%clk 0:02:58]} 11. Rg1 {[%clk 0:02:26]}  Bd5 {[%clk 0:02:50]} 12. Bd3 {[%clk 0:02:25]}  g6 {[%clk 0:02:45]} 13. Qe2 {[%clk 0:02:18]}  Bg7 {[%clk 0:02:44]} 14. O-O-O {[%clk 0:02:17]}  Nb6 {[%clk 0:02:35]} 15. f5 {[%clk 0:02:04]}  Nfd7 {[%clk 0:02:29]} 16. Bf4 {[%clk 0:02:00]}  Qb4 {[%clk 0:02:10]} 17. Qe3 {[%clk 0:01:33]}  Nxe5 {[%clk 0:01:58]} 18. Bxe5 {[%clk 0:01:32]}  Bxe5 {[%clk 0:01:48]} 19. Qxe5 {[%clk 0:01:26]}  f6 {[%clk 0:01:48]} 20. Qc7 {[%clk 0:01:11]}  Qd6 {[%clk 0:01:43]} 21. Qxd6 {[%clk 0:01:07]}  exd6 {[%clk 0:01:43]} 22. fxg6 {[%clk 0:01:07]}  hxg6 {[%clk 0:01:43]} 23. Bxg6+ {[%clk 0:01:07]}  Kf8 {[%clk 0:01:34]} 24. Rg3 {[%clk 0:00:55]}  Kg7 {[%clk 0:01:28]} 25. Bh5 {[%clk 0:00:53]}  Bc4 {[%clk 0:01:21]} 26. b3 {[%clk 0:00:50]}  Ba6 {[%clk 0:01:19]} 27. Ne4 {[%clk 0:00:46]}  d5 {[%clk 0:01:17]} 28. Nd6 {[%clk 0:00:45]}  Rhd8 {[%clk 0:01:12]} 29. Nf5+ {[%clk 0:00:43]}  Kh8 {[%clk 0:01:13]} 30. Re1 {[%clk 0:00:41]}  Rd7 {[%clk 0:01:04]} 31. Re6 {[%clk 0:00:36]}  Rf8 {[%clk 0:01:04]} 32. Rge3 {[%clk 0:00:32]}  Bf1 {[%clk 0:01:02]} 33. h4 {[%clk 0:00:30]}  Bg2 {[%clk 0:00:57]} 34. Ne7 {[%clk 0:00:18]}  Be4 {[%clk 0:00:54]} 35. Bg6 {[%clk 0:00:17]}  Rxe7 {[%clk 0:00:50]} 36. Rxe7 {[%clk 0:00:17]}  Bxg6 {[%clk 0:00:49]} 37. Rxb7 {[%clk 0:00:14]}  Kg8 {[%clk 0:00:43]} 38. Rxa7 {[%clk 0:00:14]}  Re8 {[%clk 0:00:42]} 39. Rxe8+ {[%clk 0:00:13]}  Bxe8 {[%clk 0:00:42]} 40. Rb7 {[%clk 0:00:12]}  Nd7 {[%clk 0:00:39]} 41. Rc7 {[%clk 0:00:11]}  Nf8 {[%clk 0:00:39]} 42. a4 {[%clk 0:00:10]}  Ne6 {[%clk 0:00:37]} 43. Rc8 {[%clk 0:00:10]}  Kf7 {[%clk 0:00:37]} 44. c3 {[%clk 0:00:10]}  Bd7 {[%clk 0:00:36]} 45. Rb8 {[%clk 0:00:10]}  Nf4 {[%clk 0:00:34]} 46. Kd2 {[%clk 0:00:09]}  Ng2 {[%clk 0:00:34]} 47. a5 {[%clk 0:00:07]}  Nxh4 {[%clk 0:00:16]} 48. a6 {[%clk 0:00:07]}  Nf3+ {[%clk 0:00:16]} 49. Ke3 {[%clk 0:00:08]}  Ng5 {[%clk 0:00:17]} 50. a7 {[%clk 0:00:08]}  Ne4 {[%clk 0:00:15]} 51. a8=Q {[%clk 0:00:08]}  Nxc3 {[%clk 0:00:14]} 52. Rf8+ {[%clk 0:00:08]}  Kg6 {[%clk 0:00:13]} 53. Qd8 {[%clk 0:00:06]}  Bxg4 {[%clk 0:00:12]} 54. Qxf6+ {[%clk 0:00:05]}  Kh5 {[%clk 0:00:10]} 55. Rh8# {[%clk 0:00:06]} 1-0


[Site "https://www.chess.com"]

[Event "Titled Tuesday Blitz July 11 Late 2023"]
[White "SergioMoralesG"]
[Black "Kostiukov, Alexandr"]
[BlackFideId "14108100"]
[WhiteElo "2451"]
[BlackElo "2327"]
[Result "0-1"]
[Round "8"]
[TimeControl "180+2"]
[Date "2023.07.11"]
[WhiteClock "0:00:02"]
[BlackClock "0:00:50"]
[Board "96"]

1. e4 {[%clk 0:03:00]}  c5 {[%clk 0:02:59]} 2. Nf3 {[%clk 0:02:57]}  g6 {[%clk 0:02:59]} 3. g3 {[%clk 0:02:53]}  Bg7 {[%clk 0:02:58]} 4. Bg2 {[%clk 0:02:53]}  Nc6 {[%clk 0:02:59]} 5. c3 {[%clk 0:02:51]}  e5 {[%clk 0:02:58]} 6. O-O {[%clk 0:02:50]}  Nge7 {[%clk 0:02:53]} 7. d3 {[%clk 0:02:32]}  O-O {[%clk 0:02:51]} 8. Be3 {[%clk 0:02:32]}  d6 {[%clk 0:02:48]} 9. d4 {[%clk 0:02:26]}  exd4 {[%clk 0:02:48]} 10. cxd4 {[%clk 0:02:26]}  Bg4 {[%clk 0:02:48]} 11. d5 {[%clk 0:01:38]}  Ne5 {[%clk 0:02:28]} 12. Nbd2 {[%clk 0:01:33]}  f5 {[%clk 0:02:25]} 13. Qc2 {[%clk 0:01:24]}  Nxf3+ {[%clk 0:02:00]} 14. Bxf3 {[%clk 0:01:23]}  Bh3 {[%clk 0:01:50]} 15. Rfe1 {[%clk 0:01:19]}  fxe4 {[%clk 0:01:46]} 16. Bxe4 {[%clk 0:01:14]}  Nf5 {[%clk 0:01:42]} 17. Bg2 {[%clk 0:00:45]}  Bxg2 {[%clk 0:01:29]} 18. Kxg2 {[%clk 0:00:46]}  Nxe3+ {[%clk 0:01:26]} 19. Rxe3 {[%clk 0:00:45]}  Qf6 {[%clk 0:01:22]} 20. Rf3 {[%clk 0:00:39]}  Qd4 {[%clk 0:01:06]} 21. Re1 {[%clk 0:00:29]}  Rxf3 {[%clk 0:00:53]} 22. Nxf3 {[%clk 0:00:26]}  Qxd5 {[%clk 0:00:53]} 23. Rd1 {[%clk 0:00:02]}  Bd4 {[%clk 0:00:50]} 0-1


[Site "https://www.chess.com"]

[Event "Titled Tuesday Blitz July 11 Late 2023"]
[White "rikchessmx"]
[Black "Andrews, Todd"]
[BlackFideId "2012456"]
[WhiteElo "2259"]
[BlackElo "2434"]
[Result "1-0"]
[Round "8"]
[TimeControl "180+2"]
[Date "2023.07.11"]
[WhiteClock "0:01:24"]
[BlackClock "0:00:25"]
[Board "101"]

1. e4 {[%clk 0:02:45]}  e6 {[%clk 0:02:59]} 2. d4 {[%clk 0:02:44]}  d5 {[%clk 0:03:00]} 3. Nc3 {[%clk 0:02:43]}  Bb4 {[%clk 0:02:59]} 4. e5 {[%clk 0:02:42]}  c5 {[%clk 0:03:00]} 5. a3 {[%clk 0:02:43]}  Bxc3+ {[%clk 0:03:01]} 6. bxc3 {[%clk 0:02:44]}  Ne7 {[%clk 0:03:01]} 7. Qg4 {[%clk 0:02:44]}  Qc7 {[%clk 0:03:02]} 8. Qxg7 {[%clk 0:02:44]}  Rg8 {[%clk 0:03:02]} 9. Qxh7 {[%clk 0:02:44]}  cxd4 {[%clk 0:03:02]} 10. Ne2 {[%clk 0:02:45]}  Nbc6 {[%clk 0:03:02]} 11. f4 {[%clk 0:02:45]}  dxc3 {[%clk 0:03:02]} 12. Qd3 {[%clk 0:02:46]}  d4 {[%clk 0:03:02]} 13. g3 {[%clk 0:02:42]}  Bd7 {[%clk 0:02:56]} 14. Bg2 {[%clk 0:02:42]}  Nf5 {[%clk 0:02:54]} 15. O-O {[%clk 0:02:36]}  O-O-O {[%clk 0:02:53]} 16. h3 {[%clk 0:02:34]}  f6 {[%clk 0:02:40]} 17. exf6 {[%clk 0:02:28]}  e5 {[%clk 0:02:39]} 18. fxe5 {[%clk 0:02:22]}  Nxe5 {[%clk 0:02:38]} 19. Qe4 {[%clk 0:02:17]}  Nxg3 {[%clk 0:02:30]} 20. Nxg3 {[%clk 0:02:16]}  Rxg3 {[%clk 0:02:31]} 21. Bf4 {[%clk 0:02:14]}  Bc6 {[%clk 0:02:05]} 22. Qf5+ {[%clk 0:02:12]}  Nd7 {[%clk 0:01:56]} 23. Bxg3 {[%clk 0:01:59]}  Qxg3 {[%clk 0:01:56]} 24. Qf2 {[%clk 0:01:59]}  Qg6 {[%clk 0:01:50]} 25. Kh2 {[%clk 0:01:53]}  Rh8 {[%clk 0:01:01]} 26. Bxc6 {[%clk 0:01:46]}  bxc6 {[%clk 0:01:02]} 27. Qg2 {[%clk 0:01:44]}  Qxg2+ {[%clk 0:00:45]} 28. Kxg2 {[%clk 0:01:43]}  Kc7 {[%clk 0:00:42]} 29. Rae1 {[%clk 0:01:41]}  Rf8 {[%clk 0:00:34]} 30. f7 {[%clk 0:01:37]}  Kd6 {[%clk 0:00:34]} 31. h4 {[%clk 0:01:35]}  c5 {[%clk 0:00:35]} 32. h5 {[%clk 0:01:30]}  Ne5 {[%clk 0:00:34]} 33. Rf6+ {[%clk 0:01:30]}  Kd5 {[%clk 0:00:34]} 34. Rf5 {[%clk 0:01:29]}  d3 {[%clk 0:00:25]} 35. Rexe5+ {[%clk 0:01:28]}  Kd4 {[%clk 0:00:26]} 36. Rd5+ {[%clk 0:01:27]}  Ke3 {[%clk 0:00:24]} 37. Rxd3+ {[%clk 0:01:24]}  Ke2 {[%clk 0:00:25]} 1-0


[Site "https://www.chess.com"]

[Event "Titled Tuesday Blitz July 11 Late 2023"]
[White "Rios Escobar, Adan"]
[Black "Sarkar, Justin"]
[WhiteFideId "3403645"]
[BlackFideId "2010011"]
[WhiteElo "2433"]
[BlackElo "2258"]
[Result "1-0"]
[Round "8"]
[TimeControl "180+2"]
[Date "2023.07.11"]
[WhiteClock "0:01:14"]
[BlackClock "0:00:00"]
[Board "102"]

1. d4 {[%clk 0:02:52]}  e6 {[%clk 0:02:53]} 2. c4 {[%clk 0:02:52]}  f5 {[%clk 0:02:53]} 3. g3 {[%clk 0:02:52]}  Nf6 {[%clk 0:02:52]} 4. Bg2 {[%clk 0:02:52]}  Be7 {[%clk 0:02:48]} 5. Nf3 {[%clk 0:02:53]}  d5 {[%clk 0:02:46]} 6. O-O {[%clk 0:02:53]}  O-O {[%clk 0:02:46]} 7. b3 {[%clk 0:02:53]}  a5 {[%clk 0:02:17]} 8. Ba3 {[%clk 0:02:53]}  a4 {[%clk 0:01:32]} 9. Bxe7 {[%clk 0:02:48]}  Qxe7 {[%clk 0:01:32]} 10. Nc3 {[%clk 0:02:49]}  axb3 {[%clk 0:01:04]} 11. axb3 {[%clk 0:02:47]}  Rxa1 {[%clk 0:01:03]} 12. Qxa1 {[%clk 0:02:47]}  Ne4 {[%clk 0:00:59]} 13. cxd5 {[%clk 0:02:22]}  Nxc3 {[%clk 0:00:58]} 14. Qxc3 {[%clk 0:02:19]}  exd5 {[%clk 0:00:58]} 15. e3 {[%clk 0:02:17]}  c6 {[%clk 0:00:48]} 16. Ne5 {[%clk 0:02:04]}  Nd7 {[%clk 0:00:38]} 17. f4 {[%clk 0:01:59]}  Nxe5 {[%clk 0:00:14]} 18. dxe5 {[%clk 0:01:54]}  Be6 {[%clk 0:00:13]} 19. b4 {[%clk 0:01:52]}  Ra8 {[%clk 0:00:11]} 20. Rb1 {[%clk 0:01:38]}  Ra2 {[%clk 0:00:06]} 21. Bf1 {[%clk 0:01:30]}  h5 {[%clk 0:00:04]} 22. Qc5 {[%clk 0:01:26]}  Qxc5 {[%clk 0:00:02]} 23. bxc5 {[%clk 0:01:27]}  Ra7 {[%clk 0:00:01]} 24. Kg2 {[%clk 0:01:15]}  Kf7 {[%clk 0:00:01]} 25. Kh3 {[%clk 0:01:15]}  g6 {[%clk 0:00:00]} 26. Kh4 {[%clk 0:01:14]} 1-0


[Site "https://www.chess.com"]

[Event "Titled Tuesday Blitz July 11 Late 2023"]
[White "gordonzyxu"]
[Black "Papayan, Oleg"]
[BlackFideId "4193911"]
[WhiteElo "1984"]
[BlackElo "2491"]
[Result "1-0"]
[Round "8"]
[TimeControl "180+2"]
[Date "2023.07.11"]
[WhiteClock "0:00:18"]
[BlackClock "0:00:04"]
[Board "106"]

1. e4 {[%clk 0:03:00]}  Nf6 {[%clk 0:02:55]} 2. e5 {[%clk 0:02:58]}  Nd5 {[%clk 0:02:56]} 3. c4 {[%clk 0:02:57]}  Nb6 {[%clk 0:02:56]} 4. d4 {[%clk 0:02:57]}  d6 {[%clk 0:02:56]} 5. f4 {[%clk 0:02:58]}  dxe5 {[%clk 0:02:51]} 6. fxe5 {[%clk 0:02:53]}  Bf5 {[%clk 0:02:51]} 7. Nc3 {[%clk 0:02:52]}  e6 {[%clk 0:02:51]} 8. Be3 {[%clk 0:02:53]}  Bb4 {[%clk 0:02:49]} 9. Nf3 {[%clk 0:02:49]}  O-O {[%clk 0:02:47]} 10. a3 {[%clk 0:02:47]}  Bxc3+ {[%clk 0:02:46]} 11. bxc3 {[%clk 0:02:48]}  c5 {[%clk 0:02:45]} 12. Bd3 {[%clk 0:02:45]}  Bxd3 {[%clk 0:02:39]} 13. Qxd3 {[%clk 0:02:46]}  Nc6 {[%clk 0:02:37]} 14. O-O {[%clk 0:02:44]}  h6 {[%clk 0:02:03]} 15. Rad1 {[%clk 0:02:08]}  Na5 {[%clk 0:02:00]} 16. Nd2 {[%clk 0:02:05]}  Rc8 {[%clk 0:01:55]} 17. Rc1 {[%clk 0:01:52]}  Qd7 {[%clk 0:01:54]} 18. Ne4 {[%clk 0:01:46]}  Nbxc4 {[%clk 0:01:42]} 19. Rf3 {[%clk 0:01:35]}  Nxe5 {[%clk 0:01:28]} 20. Nf6+ {[%clk 0:01:20]}  gxf6 {[%clk 0:01:28]} 21. Rg3+ {[%clk 0:01:20]}  Kh8 {[%clk 0:01:04]} 22. Qe4 {[%clk 0:01:13]}  Ng6 {[%clk 0:00:41]} 23. Bxh6 {[%clk 0:00:59]}  Qd5 {[%clk 0:00:40]} 24. Qg4 {[%clk 0:00:52]}  Qf5 {[%clk 0:00:38]} 25. Qe2 {[%clk 0:00:50]}  Rfd8 {[%clk 0:00:25]} 26. Rf1 {[%clk 0:00:49]}  Qd5 {[%clk 0:00:19]} 27. Rxf6 {[%clk 0:00:45]}  cxd4 {[%clk 0:00:20]} 28. Rxf7 {[%clk 0:00:43]}  dxc3 {[%clk 0:00:17]} 29. Rxg6 {[%clk 0:00:26]}  Qd1+ {[%clk 0:00:17]} 30. Qxd1 {[%clk 0:00:27]}  Rxd1+ {[%clk 0:00:18]} 31. Kf2 {[%clk 0:00:27]}  c2 {[%clk 0:00:19]} 32. Rgg7 {[%clk 0:00:23]}  Rf1+ {[%clk 0:00:03]} 33. Kxf1 {[%clk 0:00:19]}  c1=Q+ {[%clk 0:00:03]} 34. Bxc1 {[%clk 0:00:19]}  Rxc1+ {[%clk 0:00:04]} 35. Kf2 {[%clk 0:00:19]}  Rc2+ {[%clk 0:00:04]} 36. Kg3 {[%clk 0:00:19]}  Rc3+ {[%clk 0:00:04]} 37. Kg4 {[%clk 0:00:19]}  Rxa3 {[%clk 0:00:03]} 38. Kg5 {[%clk 0:00:18]}  Ra2 {[%clk 0:00:03]} 39. g4 {[%clk 0:00:17]}  Rxh2 {[%clk 0:00:04]} 40. Kg6 {[%clk 0:00:18]}  Rh3 {[%clk 0:00:04]} 41. Rf8# {[%clk 0:00:18]} 1-0


[Site "https://www.chess.com"]

[Event "Titled Tuesday Blitz July 11 Late 2023"]
[White "Pesotskiy, Mikhail"]
[Black "kripri"]
[WhiteFideId "34164453"]
[WhiteElo "2383"]
[BlackElo "2330"]
[Result "1/2-1/2"]
[Round "8"]
[TimeControl "180+2"]
[Date "2023.07.11"]
[WhiteClock "0:00:06"]
[BlackClock "0:00:08"]
[Board "108"]

1. d4 {[%clk 0:02:59]}  d5 {[%clk 0:02:59]} 2. c4 {[%clk 0:02:59]}  c6 {[%clk 0:02:58]} 3. Nf3 {[%clk 0:02:58]}  Nf6 {[%clk 0:02:58]} 4. Nbd2 {[%clk 0:02:56]}  Bf5 {[%clk 0:02:52]} 5. Nh4 {[%clk 0:02:51]}  Bg6 {[%clk 0:02:49]} 6. Qb3 {[%clk 0:02:51]}  Qb6 {[%clk 0:02:46]} 7. Qh3 {[%clk 0:02:50]}  Nbd7 {[%clk 0:02:15]} 8. Nxg6 {[%clk 0:02:42]}  fxg6 {[%clk 0:02:16]} 9. e3 {[%clk 0:02:42]}  O-O-O {[%clk 0:02:10]} 10. c5 {[%clk 0:02:39]}  Qc7 {[%clk 0:02:08]} 11. f4 {[%clk 0:02:40]}  Kb8 {[%clk 0:01:47]} 12. Bd3 {[%clk 0:02:38]}  b6 {[%clk 0:01:38]} 13. b4 {[%clk 0:02:37]}  Re8 {[%clk 0:01:11]} 14. O-O {[%clk 0:02:26]}  Rg8 {[%clk 0:01:01]} 15. Qe6 {[%clk 0:02:11]}  Ka8 {[%clk 0:00:27]} 16. Nf3 {[%clk 0:02:10]}  Qc8 {[%clk 0:00:25]} 17. Qh3 {[%clk 0:01:23]}  Nb8 {[%clk 0:00:24]} 18. Qh4 {[%clk 0:01:24]}  e6 {[%clk 0:00:21]} 19. Bd2 {[%clk 0:01:21]}  Be7 {[%clk 0:00:21]} 20. Qh3 {[%clk 0:01:19]}  Ne4 {[%clk 0:00:20]} 21. Be1 {[%clk 0:01:16]}  Bf6 {[%clk 0:00:19]} 22. Bxe4 {[%clk 0:01:15]}  dxe4 {[%clk 0:00:19]} 23. Nd2 {[%clk 0:01:16]}  bxc5 {[%clk 0:00:17]} 24. bxc5 {[%clk 0:01:15]}  Qa6 {[%clk 0:00:16]} 25. Nxe4 {[%clk 0:01:15]}  Nd7 {[%clk 0:00:15]} 26. Bg3 {[%clk 0:01:02]}  Qd3 {[%clk 0:00:15]} 27. Nd6 {[%clk 0:00:59]}  Qxe3+ {[%clk 0:00:15]} 28. Kh1 {[%clk 0:01:00]}  Rb8 {[%clk 0:00:15]} 29. Rae1 {[%clk 0:00:58]}  Qxd4 {[%clk 0:00:15]} 30. Qxe6 {[%clk 0:00:59]}  Nxc5 {[%clk 0:00:15]} 31. Qe3 {[%clk 0:00:50]}  Qxd6 {[%clk 0:00:15]} 32. f5 {[%clk 0:00:51]}  Qd4 {[%clk 0:00:15]} 33. Bxb8 {[%clk 0:00:51]}  Rxb8 {[%clk 0:00:15]} 34. Qf3 {[%clk 0:00:43]}  Qd5 {[%clk 0:00:14]} 35. Qh3 {[%clk 0:00:37]}  gxf5 {[%clk 0:00:13]} 36. Qxh7 {[%clk 0:00:37]}  Ne4 {[%clk 0:00:13]} 37. Qxf5 {[%clk 0:00:32]}  Qxf5 {[%clk 0:00:13]} 38. Rxf5 {[%clk 0:00:33]}  Nc3 {[%clk 0:00:12]} 39. Rf2 {[%clk 0:00:29]}  Rb1 {[%clk 0:00:11]} 40. Rxb1 {[%clk 0:00:28]}  Nxb1 {[%clk 0:00:12]} 41. g4 {[%clk 0:00:23]}  Kb7 {[%clk 0:00:12]} 42. g5 {[%clk 0:00:20]}  Bd4 {[%clk 0:00:12]} 43. Rc2 {[%clk 0:00:17]}  c5 {[%clk 0:00:12]} 44. Kg2 {[%clk 0:00:14]}  Na3 {[%clk 0:00:11]} 45. Rd2 {[%clk 0:00:12]}  Kc6 {[%clk 0:00:12]} 46. Kf3 {[%clk 0:00:09]}  Kd5 {[%clk 0:00:12]} 47. h4 {[%clk 0:00:09]}  Nc4 {[%clk 0:00:12]} 48. Re2 {[%clk 0:00:08]}  Ne5+ {[%clk 0:00:12]} 49. Kf4 {[%clk 0:00:09]}  c4 {[%clk 0:00:12]} 50. h5 {[%clk 0:00:08]}  c3 {[%clk 0:00:12]} 51. h6 {[%clk 0:00:08]}  gxh6 {[%clk 0:00:11]} 52. gxh6 {[%clk 0:00:09]}  Nc4 {[%clk 0:00:12]} 53. h7 {[%clk 0:00:08]}  Nd2 {[%clk 0:00:12]} 54. Re8 {[%clk 0:00:04]}  c2 {[%clk 0:00:11]} 55. Rd8+ {[%clk 0:00:04]}  Kc4 {[%clk 0:00:11]} 56. Rxd4+ {[%clk 0:00:05]}  Kxd4 {[%clk 0:00:11]} 57. h8=Q+ {[%clk 0:00:06]}  Kd3 {[%clk 0:00:11]} 58. Qh3+ {[%clk 0:00:03]}  Ke2 {[%clk 0:00:11]} 59. Qc8 {[%clk 0:00:01]}  Kd1 {[%clk 0:00:11]} 60. Qc7 {[%clk 0:00:02]}  c1=Q {[%clk 0:00:12]} 61. Qxa7 {[%clk 0:00:03]}  Nc4+ {[%clk 0:00:11]} 62. Kf5 {[%clk 0:00:04]}  Qc2+ {[%clk 0:00:11]} 63. Kf6 {[%clk 0:00:04]}  Qc3+ {[%clk 0:00:11]} 64. Ke6 {[%clk 0:00:04]}  Qd3 {[%clk 0:00:11]} 65. Qd7 {[%clk 0:00:04]}  Qxd7+ {[%clk 0:00:08]} 66. Kxd7 {[%clk 0:00:04]}  Kc2 {[%clk 0:00:08]} 67. a4 {[%clk 0:00:05]}  Kb3 {[%clk 0:00:08]} 68. a5 {[%clk 0:00:06]}  Nxa5 {[%clk 0:00:08]} 1/2-1/2


[Site "https://www.chess.com"]

[Event "Titled Tuesday Blitz July 11 Late 2023"]
[White "Prydun, Andriy"]
[Black "Bazzano, Sebastian"]
[WhiteFideId "14145898"]
[BlackFideId "104566"]
[WhiteElo "2378"]
[BlackElo "2228"]
[Result "1-0"]
[Round "8"]
[TimeControl "180+2"]
[Date "2023.07.11"]
[WhiteClock "0:00:08"]
[BlackClock "0:00:00"]
[Board "110"]

1. d4 {[%clk 0:02:59]}  Nf6 {[%clk 0:02:59]} 2. Nd2 {[%clk 0:02:59]}  d5 {[%clk 0:02:58]} 3. Ngf3 {[%clk 0:02:59]}  g6 {[%clk 0:02:54]} 4. Ne5 {[%clk 0:02:48]}  Bg7 {[%clk 0:02:54]} 5. Nd3 {[%clk 0:02:49]}  O-O {[%clk 0:02:53]} 6. Nf3 {[%clk 0:02:49]}  b6 {[%clk 0:02:35]} 7. c3 {[%clk 0:02:09]}  Bb7 {[%clk 0:02:29]} 8. h3 {[%clk 0:02:07]}  Nbd7 {[%clk 0:02:28]} 9. Be3 {[%clk 0:02:07]}  Ne4 {[%clk 0:02:25]} 10. Nd2 {[%clk 0:02:02]}  c5 {[%clk 0:02:14]} 11. dxc5 {[%clk 0:02:01]}  bxc5 {[%clk 0:02:07]} 12. Nxe4 {[%clk 0:02:00]}  dxe4 {[%clk 0:02:08]} 13. Nxc5 {[%clk 0:02:00]}  Nxc5 {[%clk 0:02:05]} 14. Bxc5 {[%clk 0:02:01]}  Qc7 {[%clk 0:01:59]} 15. Be3 {[%clk 0:01:50]}  Rad8 {[%clk 0:01:47]} 16. Qc1 {[%clk 0:01:49]}  f5 {[%clk 0:01:42]} 17. Bf4 {[%clk 0:01:32]}  e5 {[%clk 0:01:41]} 18. Bh2 {[%clk 0:01:33]}  Qb6 {[%clk 0:01:19]} 19. e3 {[%clk 0:01:21]}  f4 {[%clk 0:01:10]} 20. Bc4+ {[%clk 0:01:22]}  Kh8 {[%clk 0:01:09]} 21. O-O {[%clk 0:01:20]}  f3 {[%clk 0:01:03]} 22. g4 {[%clk 0:00:58]}  Qf6 {[%clk 0:00:51]} 23. Bg3 {[%clk 0:00:58]}  h5 {[%clk 0:00:50]} 24. Rd1 {[%clk 0:00:46]}  hxg4 {[%clk 0:00:37]} 25. h4 {[%clk 0:00:46]}  g5 {[%clk 0:00:30]} 26. h5 {[%clk 0:00:40]}  Rxd1+ {[%clk 0:00:20]} 27. Qxd1 {[%clk 0:00:41]}  Qh6 {[%clk 0:00:21]} 28. Qd7 {[%clk 0:00:39]}  Bc8 {[%clk 0:00:19]} 29. Qxa7 {[%clk 0:00:33]}  Qxh5 {[%clk 0:00:19]} 30. Qc7 {[%clk 0:00:28]}  Bf5 {[%clk 0:00:17]} 31. a4 {[%clk 0:00:27]}  Rf6 {[%clk 0:00:08]} 32. Qd8+ {[%clk 0:00:16]}  Rf8 {[%clk 0:00:08]} 33. Qd6 {[%clk 0:00:09]}  Qe8 {[%clk 0:00:03]} 34. a5 {[%clk 0:00:08]}  Qd8 {[%clk 0:00:01]} 35. Qxd8 {[%clk 0:00:07]}  Rxd8 {[%clk 0:00:02]} 36. a6 {[%clk 0:00:08]}  Ra8 {[%clk 0:00:00]} 37. a7 {[%clk 0:00:08]} 1-0


[Site "https://www.chess.com"]

[Event "Titled Tuesday Blitz July 11 Late 2023"]
[White "Curtis, John"]
[Black "Bobkov, Vadim"]
[WhiteFideId "3200256"]
[BlackFideId "34110876"]
[WhiteElo "2013"]
[BlackElo "2507"]
[Result "1-0"]
[Round "8"]
[TimeControl "180+2"]
[Date "2023.07.11"]
[WhiteClock "0:00:42"]
[BlackClock "0:00:00"]
[Board "111"]

1. d4 {[%clk 0:03:00]}  d5 {[%clk 0:02:58]} 2. c4 {[%clk 0:02:59]}  dxc4 {[%clk 0:02:42]} 3. e3 {[%clk 0:02:53]}  Nf6 {[%clk 0:02:35]} 4. Bxc4 {[%clk 0:02:52]}  e6 {[%clk 0:02:35]} 5. Nf3 {[%clk 0:02:52]}  c5 {[%clk 0:02:32]} 6. O-O {[%clk 0:02:51]}  Nc6 {[%clk 0:02:01]} 7. Nc3 {[%clk 0:02:44]}  a6 {[%clk 0:01:49]} 8. dxc5 {[%clk 0:02:09]}  Qxd1 {[%clk 0:01:46]} 9. Rxd1 {[%clk 0:02:08]}  Bxc5 {[%clk 0:01:45]} 10. a3 {[%clk 0:02:07]}  b5 {[%clk 0:01:18]} 11. Bd3 {[%clk 0:02:03]}  O-O {[%clk 0:01:09]} 12. Ne4 {[%clk 0:02:02]}  Be7 {[%clk 0:01:05]} 13. Bd2 {[%clk 0:01:56]}  Rd8 {[%clk 0:00:59]} 14. Nxf6+ {[%clk 0:01:36]}  Bxf6 {[%clk 0:00:56]} 15. Bc3 {[%clk 0:01:36]}  Bxc3 {[%clk 0:00:50]} 16. bxc3 {[%clk 0:01:34]}  Bb7 {[%clk 0:00:43]} 17. Be4 {[%clk 0:01:18]}  Na5 {[%clk 0:00:30]} 18. Bxb7 {[%clk 0:01:12]}  Nxb7 {[%clk 0:00:31]} 19. Kf1 {[%clk 0:00:58]}  f6 {[%clk 0:00:24]} 20. Rxd8+ {[%clk 0:00:53]}  Rxd8 {[%clk 0:00:24]} 21. a4 {[%clk 0:00:54]}  Rd3 {[%clk 0:00:14]} 22. axb5 {[%clk 0:00:53]}  axb5 {[%clk 0:00:14]} 23. Nd4 {[%clk 0:00:52]}  Rxc3 {[%clk 0:00:08]} 24. Nxb5 {[%clk 0:00:43]}  Rc2 {[%clk 0:00:07]} 25. Ra8+ {[%clk 0:00:42]}  Kf7 {[%clk 0:00:00]} 26. Ra7 {[%clk 0:00:42]} 1-0


[Site "https://www.chess.com"]

[Event "Titled Tuesday Blitz July 11 Late 2023"]
[White "Kirillov, Dmitry"]
[Black "Miguelitro69"]
[WhiteFideId "34180572"]
[WhiteElo "2521"]
[BlackElo "2301"]
[Result "1-0"]
[Round "8"]
[TimeControl "180+2"]
[Date "2023.07.11"]
[WhiteClock "0:01:42"]
[BlackClock "0:00:14"]
[Board "112"]

1. d4 {[%clk 0:03:00]}  c5 {[%clk 0:02:56]} 2. d5 {[%clk 0:03:00]}  Nf6 {[%clk 0:02:57]} 3. g4 {[%clk 0:02:57]}  d6 {[%clk 0:02:54]} 4. g5 {[%clk 0:02:56]}  Nfd7 {[%clk 0:02:54]} 5. h4 {[%clk 0:02:53]}  h6 {[%clk 0:02:39]} 6. g6 {[%clk 0:02:50]}  fxg6 {[%clk 0:02:24]} 7. Nf3 {[%clk 0:02:49]}  Ne5 {[%clk 0:02:22]} 8. Nxe5 {[%clk 0:02:45]}  dxe5 {[%clk 0:02:23]} 9. e4 {[%clk 0:02:46]}  Qd6 {[%clk 0:02:17]} 10. Nc3 {[%clk 0:02:43]}  a6 {[%clk 0:02:17]} 11. a4 {[%clk 0:02:32]}  Nd7 {[%clk 0:02:16]} 12. Rg1 {[%clk 0:02:20]}  b6 {[%clk 0:01:59]} 13. Be2 {[%clk 0:02:20]}  Bb7 {[%clk 0:01:56]} 14. Rxg6 {[%clk 0:02:19]}  Qc7 {[%clk 0:01:49]} 15. Be3 {[%clk 0:01:47]}  O-O-O {[%clk 0:01:44]} 16. Bxa6 {[%clk 0:01:46]}  Bxa6 {[%clk 0:01:37]} 17. Rc6 {[%clk 0:01:45]}  Qxc6 {[%clk 0:01:34]} 18. dxc6 {[%clk 0:01:46]}  Nf6 {[%clk 0:01:34]} 19. Qf3 {[%clk 0:01:44]}  e6 {[%clk 0:01:34]} 20. Nb5 {[%clk 0:01:42]}  Be7 {[%clk 0:00:14]} 21. Qh3 {[%clk 0:01:42]} 1-0


[Site "https://www.chess.com"]